bitfinex/quotes_ETHUSD_20220112
["timestamp","ask_amount","ask_price","bid_price","bid_amount"]
[1641990423684,0.00284212,3294.8,3294.2,1.42977618]
[1641990424084,0.1213,3295.1,3294.3,7.3505638]
[1641990424285,0.1213,3295.1,3294.4,2.17499999]
[1641990424484,0.1213,3295.1,3294.4,0.00227369]
[1641990424485,0.00113685,3295.0,3294.4,0.00227369]
[1641990424787,0.99829473,3294.4,3294.3,10.23567924]
[1641990424986,0.00227369,3294.9,3294.3,10.23567924]
[1641990425187,0.00227369,3294.9,3294.3,10.23681609]
[1641990425390,0.00170527,3294.8,3294.4,2.58511544]
[1641990425788,0.00113685,3294.7,3294.4,2.58511544]
[1641990426185,0.00454739,3295.3,3294.4,2.58511544]
[1641990426392,0.1213,3295.2,3294.4,2.58511544]
[1641990426614,0.363,3295.1,3294.4,2.58511544]
[1641990426820,2.48256186,3295.0,3294.4,1.58582071]
[1641990427018,0.75925,3294.8,3294.3,0.00113685]
[1641990427220,1.0,3294.4,3294.3,0.00113685]
[1641990427420,1.1213,3294.4,3293.9,0.00341054]
[1641990427622,1.0,3294.4,3293.9,0.00341054]
[1641990427821,1.0,3294.4,3293.8,0.00397897]
[1641990427822,2.42452307,3294.3,3293.8,0.00397897]
[1641990428024,0.1213,3294.2,3293.5,0.00568424]
[1641990428323,0.1213,3294.3,3293.5,0.00568424]
[1641990428522,0.40432517,3293.5,3293.3,0.1213]
[1641990428729,0.91093669,3293.4,3293.0,0.0713]
[1641990428931,0.91093669,3293.4,3292.9,6.14790425]
[1641990429124,0.91093669,3293.4,3293.1,0.00227369]
[1641990429924,0.91093669,3293.4,3292.8,0.00397896]
[1641990430227,0.99932517,3293.1,3292.8,0.00397896]
[1641990430458,0.91093669,3293.4,3292.9,0.06367332]
[1641990430660,0.91093669,3293.4,3292.8,0.12527896]
[1641990430860,0.91093669,3293.4,3293.0,0.00284211]
[1641990431062,0.91093669,3293.4,3292.9,0.00341054]
[1641990431465,0.91093669,3293.4,3293.0,0.05226357]
[1641990431661,0.91093669,3293.4,3292.9,0.00341054]
[1641990431865,0.9990056,3293.0,3292.9,0.00341054]
[1641990432263,0.75942,3293.9,3292.9,0.00341054]
[1641990432461,0.1213,3293.8,3292.9,0.00341054]
[1641990432662,0.12300527,3293.8,3292.9,0.00341054]
[1641990432862,0.00113685,3293.7,3292.9,0.00341054]
[1641990434125,0.1213,3293.6,3292.9,0.00341054]
[1641990434512,0.1213,3293.6,3292.8,0.00397896]
[1641990434714,0.1213,3293.6,3292.9,0.00341054]
[1641990434911,0.1213,3293.6,3292.8,0.00397896]
[1641990436117,0.99502664,3292.8,3292.7,0.989732]
[1641990436517,0.76352896,3293.5,3292.7,0.989732]
[1641990436720,0.1213,3293.4,3292.7,0.989732]
[1641990436916,0.12471054,3293.4,3292.7,0.989732]
[1641990437220,0.00284212,3293.3,3292.7,0.989732]
[1641990437717,0.00227369,3293.2,3292.7,0.989732]
[1641990437963,0.00929464,3292.7,3292.5,0.3]
[1641990438362,0.00929464,3292.7,3292.6,5.85113685]
[1641990438763,0.00170527,3293.1,3292.6,6.15113685]
[1641990439275,0.00113685,3293.0,3292.6,6.15113685]
[1641990439466,0.363,3292.9,3292.6,0.00113685]
[1641990439670,0.88102,3292.8,3292.6,0.00113685]
[1641990439866,7.513,3292.7,3292.2,0.00341054]
[1641990440064,7.513,3292.7,3291.6,0.00682108]
[1641990440065,1.12059464,3292.6,3291.6,0.00682108]
[1641990440264,0.363,3292.5,3291.5,0.0073895]
[1641990440467,0.1215,3292.4,3291.5,1.26534851]
[1641990440666,0.99929464,3291.6,3291.5,1.26534851]
[1641990440866,0.363,3291.9,3291.4,1.03613654]
[1641990441266,0.99929464,3291.5,3291.4,1.03613654]
[1641990441496,0.363,3291.9,3291.4,1.03613654]
[1641990441718,0.363,3291.9,3291.4,0.00795793]
[1641990441923,0.99133671,3291.4,3291.2,2.62998714]
[1641990442120,0.99133671,3291.4,3291.3,0.3]
[1641990442318,0.0022737,3291.8,3291.3,0.3]
[1641990442544,0.0022737,3291.8,3291.2,0.50293083]
[1641990442718,0.00170527,3291.7,3291.2,0.50293083]
[1641990443117,0.00113685,3291.6,3291.2,0.50293083]
[1641990443319,0.00113685,3291.6,3291.4,0.00491366]
[1641990443518,0.363,3291.9,3291.3,0.51758003]
[1641990443519,0.0022737,3291.8,3291.3,0.51758003]
[1641990443718,0.99933671,3291.4,3291.3,0.51758003]
[1641990444117,0.00170527,3291.7,3291.3,0.51758003]
[1641990444317,0.00170527,3291.7,3291.4,0.01422471]
[1641990444521,0.363,3291.9,3291.5,1.12200381]
[1641990444522,0.00113685,3291.6,3291.5,1.12200381]
[1641990444720,1.0,3292.6,3291.5,1.12200381]
[1641990444721,0.1215,3292.8,3291.6,7.35066329]
[1641990444919,0.4843,3293.2,3291.8,0.01277775]
[1641990445119,0.4843,3293.2,3292.2,0.7595104]
[1641990445359,0.4843,3293.2,3292.1,1.8189375]
[1641990445559,0.4843,3293.2,3292.1,0.3]
[1641990445763,0.75964,3293.1,3291.9,0.1213]
[1641990445960,0.1213,3293.0,3291.7,3.8943]
[1641990446160,0.91130468,3292.0,3291.8,1.5190534]
[1641990446564,0.1215,3292.9,3291.9,2.25109741]
[1641990446766,1.09309666,3293.4,3292.2,1.51874]
[1641990446965,1.09309666,3293.4,3292.9,1.25082162]
[1641990447365,1.09309666,3293.4,3292.9,1.55082162]
[1641990447768,1.09309666,3293.4,3292.9,0.3]
[1641990447967,1.09309666,3293.4,3292.6,0.3]
[1641990448167,0.1213,3293.3,3292.6,0.3]
[1641990448467,0.02933006,3293.2,3292.5,1.8187136]
[1641990448667,0.0073895,3293.2,3292.5,1.8187136]
[1641990448866,0.00682108,3293.1,3292.4,0.7594713]
[1641990449116,0.13247649,3293.0,3292.6,1.23921227]
[1641990449406,0.12755266,3293.0,3292.6,1.23921227]
[1641990449607,0.00568423,3292.9,3292.6,1.23921227]
[1641990450111,0.1213,3293.3,3292.7,0.7594183]
[1641990450112,0.00511581,3292.8,3292.7,0.7594183]
[1641990450412,0.00511581,3292.8,3292.7,1.0594183]
[1641990450611,0.00511581,3292.8,3292.7,0.0594183]
[1641990451044,0.01749565,3292.6,3292.2,3.30896239]
[1641990451212,0.01805742,3292.7,3292.2,3.18766239]
[1641990451417,0.00341054,3292.5,3292.2,3.18766239]
[1641990451613,0.00397896,3292.6,3292.2,1.0]
[1641990451813,0.00284212,3292.4,3292.2,1.75947]
[1641990452014,0.00341054,3292.5,3292.3,1.29160575]
[1641990452213,0.1213,3293.3,3292.2,0.3]
[1641990452419,0.0254432,3293.2,3292.3,2.17055574]
[1641990452615,0.1213,3293.1,3292.3,2.17055574]
[1641990452855,0.1213,3293.1,3292.3,2.12055574]
[1641990453060,0.04161863,3292.9,3292.3,2.88002714]
[1641990453261,0.04161863,3292.9,3292.3,0.7594714]
[1641990453561,0.01671879,3292.7,3292.3,0.7594714]
[1641990453964,0.00397896,3292.6,3292.4,2.16905835]
[1641990454162,0.00397896,3292.6,3292.4,3.16905835]
[1641990454466,0.1213,3293.3,3292.6,0.7594257]
[1641990454861,0.0073895,3293.2,3292.7,0.3]
[1641990455264,0.00682108,3293.1,3292.7,0.3]
[1641990455461,0.04612053,3293.0,3292.6,0.7594257]
[1641990455661,0.05237319,3293.0,3292.6,0.7594257]
[1641990455863,0.00568423,3292.9,3292.7,2.70315107]
[1641990456063,0.00568423,3292.9,3292.8,12.864577]
[1641990456265,1.09309666,3293.4,3292.8,12.864577]
[1641990456467,1.09309666,3293.4,3292.9,0.01940742]
[1641990456720,0.03315394,3293.3,3293.0,1.4964737]
[1641990456919,0.00795793,3293.3,3293.0,1.4964737]
[1641990457121,0.0073895,3293.2,3293.0,1.7964737]
[1641990457321,0.0073895,3293.2,3293.1,7.96288017]
[1641990457538,1.09309666,3293.4,3293.1,5.8]
[1641990457726,1.09309666,3293.4,3293.1,8.95771644]
[1641990457922,0.00795793,3293.3,3293.1,8.95771644]
[1641990458123,0.00795793,3293.3,3293.1,6.8]
[1641990458328,0.0073895,3293.2,3293.1,6.8]
[1641990458523,0.0073895,3293.2,3293.1,5.8]
[1641990458724,0.0073895,3293.2,3293.0,3.3150488]
[1641990458725,0.0073895,3293.2,3293.0,1.5185751]
[1641990458927,0.1213,3293.1,3292.4,1.5187576]
[1641990459127,0.12812108,3293.1,3292.4,1.5187576]
[1641990459322,1.00583436,3293.0,3292.4,1.5187576]
[1641990459723,0.00568423,3292.9,3292.4,1.34883556]
[1641990459924,0.1213,3292.8,3292.4,1.34883556]
[1641990460124,0.00511581,3292.8,3292.4,1.64883556]
[1641990460364,0.00454739,3292.7,3292.4,1.64883556]
[1641990460761,0.00397896,3292.6,3292.4,1.64883556]
[1641990460966,0.00397896,3292.6,3292.4,2.40829126]
[1641990461161,0.00341054,3292.5,3292.4,2.40829126]
[1641990461780,0.00341054,3292.5,3292.4,9.35829126]
[1641990462568,0.00341054,3292.5,3292.4,8.59883556]
[1641990463669,0.00341054,3292.5,3292.4,0.34925386]
[1641990463872,0.00341054,3292.5,3292.4,3.84925386]
[1641990464122,0.00341054,3292.5,3292.4,6.85057276]
[1641990464726,0.00341054,3292.5,3292.4,10.15057276]
[1641990464925,0.00341054,3292.5,3292.4,11.45057276]
[1641990465125,0.00341054,3292.5,3292.4,8.15057276]
[1641990465533,0.00341054,3292.5,3292.4,9.03127276]
[1641990467131,0.00341054,3292.5,3292.4,9.33127276]
[1641990467332,0.00341054,3292.5,3292.4,6.79120782]
[1641990467534,0.00341054,3292.5,3292.4,8.94016544]
[1641990467732,0.00341054,3292.5,3292.4,6.79120782]
[1641990468169,0.00341054,3292.5,3292.4,6.66990782]
[1641990468365,0.00341054,3292.5,3292.4,5.91050782]
[1641990471917,0.00341054,3292.5,3292.4,4.48325386]
[1641990472124,0.05487257,3292.5,3292.3,0.1213]
[1641990472419,1.1213,3292.4,3292.3,0.1213]
[1641990472618,0.12414212,3292.4,3292.3,0.1213]
[1641990472820,0.00284212,3292.4,3292.3,2.9213]
[1641990473017,0.00284212,3292.4,3292.3,1.9213]
[1641990473421,0.00284212,3292.4,3292.3,2.2213]
[1641990474018,0.00284212,3292.4,3292.3,2.1003]
[1641990474317,0.00284212,3292.4,3292.3,1.2213]
[1641990474719,0.00284212,3292.4,3292.0,1.5190115]
[1641990475019,0.17162255,3292.3,3292.0,1.5190115]
[1641990475220,0.17389624,3292.3,3292.0,1.5190115]
[1641990475466,0.00170527,3292.2,3292.0,1.5190115]
[1641990475663,0.00170527,3292.2,3292.1,0.7595041]
[1641990475864,1.09336813,3292.6,3292.1,0.7595041]
[1641990476069,0.1213,3292.5,3292.0,0.1520115]
[1641990476363,0.12471054,3292.5,3291.9,1.55747994]
[1641990476563,0.00341054,3292.5,3292.0,0.01907716]
[1641990476767,0.00341054,3292.5,3291.9,2.31699994]
[1641990476969,0.00341054,3292.5,3292.1,0.7595379]
[1641990477368,0.00341054,3292.5,3292.2,0.239]
[1641990477569,0.00341054,3292.5,3292.0,1.5190001]
[1641990477969,0.00341054,3292.5,3292.1,0.7595431]
[1641990478971,0.00341054,3292.5,3292.2,1.8189036]
[1641990479452,0.00341054,3292.5,3292.3,0.00690733]
[1641990479614,0.00341054,3292.5,3292.2,1.8189036]
[1641990480214,0.01864422,3292.4,3292.2,1.8189036]
[1641990480417,0.00341054,3292.5,3292.2,1.8189036]
[1641990480616,0.1213,3293.1,3292.2,1.8189036]
[1641990480817,0.00284212,3292.4,3292.3,1.52061541]
[1641990481621,0.00284212,3292.4,3292.3,7.92061541]
[1641990481818,0.00284212,3292.4,3292.3,6.40113685]
[1641990482018,1.66474649,3292.4,3292.3,6.40113685]
[1641990483594,1.09309666,3293.4,3292.6,0.04649588]
[1641990483795,0.1214,3293.6,3293.0,0.01239428]
[1641990483989,5.6421,3294.9,3293.0,0.01239428]
[1641990483990,0.1213,3294.7,3293.3,0.3]
[1641990484190,0.1213,3294.8,3293.4,0.00829494]
[1641990484391,0.0096632,3294.7,3294.1,1.28827659]
[1641990484593,0.1213,3294.6,3294.1,1.28827659]
[1641990484796,0.00909477,3294.6,3294.1,1.58827659]
[1641990484991,0.00852635,3294.5,3294.1,1.58827659]
[1641990485193,0.00852635,3294.5,3294.4,0.7589222]
[1641990485390,1.15298518,3294.7,3294.5,0.0200363]
[1641990485590,1.15298518,3294.7,3294.5,0.7788963]
[1641990485791,0.00909477,3294.6,3294.5,1.75886]
[1641990485993,0.00909477,3294.6,3294.5,1.0]
[1641990486189,0.1213,3296.2,3294.6,8.3]
[1641990486190,0.88017,3296.2,3294.6,8.3]
[1641990486397,0.1213,3296.2,3294.9,1.51749]
[1641990486612,0.00852635,3296.1,3295.0,2.07671]
[1641990486819,0.00852635,3296.1,3295.9,1.49083119]
[1641990487017,0.00795793,3296.0,3295.9,1.49083119]
[1641990487216,0.00795793,3296.0,3295.9,2.24951229]
[1641990487616,0.00795793,3296.0,3295.9,8.24951229]
[1641990488017,0.00795793,3296.0,3295.9,6.0]
[1641990488418,0.00795793,3296.0,3295.9,1.0]
[1641990488618,0.00795793,3296.0,3295.8,1.5172673]
[1641990488929,0.00795793,3296.0,3295.2,3.8775]
[1641990488930,0.17276203,3295.9,3295.2,3.8775]
[1641990489118,0.12868951,3295.9,3295.2,0.1213]
[1641990489320,0.01190274,3295.7,3295.2,0.1213]
[1641990489519,0.00682108,3295.8,3295.1,0.7588419]
[1641990489819,1.0,3295.2,3295.1,0.7588419]
[1641990490371,1.0,3295.2,3295.1,1.1801419]
[1641990490372,0.00341054,3295.2,3295.1,1.1801419]
[1641990490560,0.00341054,3295.2,3295.1,10.4801419]
[1641990490959,0.00341054,3295.2,3295.1,1.1801419]
[1641990491183,0.00341054,3295.2,3294.0,3.1563401]
[1641990491367,0.03383311,3295.1,3294.2,0.27639994]
[1641990491572,0.00284212,3295.1,3294.3,0.00170527]
[1641990491765,0.5593,3295.9,3295.7,0.07270233]
[1641990492165,0.92729767,3295.1,3294.3,2.28136199]
[1641990492365,0.04865105,3295.0,3294.3,2.28136199]
[1641990492565,0.1213,3295.7,3294.7,0.7589267]
[1641990492767,0.1213,3295.7,3294.8,2.191603]
[1641990492768,0.12471054,3295.7,3294.8,2.191603]
[1641990492967,0.12471054,3295.7,3295.5,4.42308417]
[1641990492968,0.00284212,3295.6,3295.5,4.42308417]
[1641990493368,0.00284212,3295.6,3295.5,1.17308417]
[1641990494215,0.00284212,3295.6,3295.3,1.5174013]
[1641990494612,0.00227369,3295.5,3295.3,1.5174013]
[1641990495014,0.00170527,3295.4,3295.3,1.5174013]
[1641990495213,0.00170527,3295.4,3295.3,2.93421213]
[1641990495412,0.00170527,3295.4,3295.3,7.58421213]
[1641990495813,0.00170527,3295.4,3295.3,1.41681083]
[1641990496414,0.00170527,3295.4,3295.3,4.11681083]
[1641990496830,0.00170527,3295.4,3295.3,3.0]
[1641990497217,0.00170527,3295.4,3295.3,2.00070233]
[1641990497616,0.12300527,3295.4,3295.3,1.00070233]
[1641990497867,0.00170527,3295.4,3295.3,1.00070233]
[1641990498059,0.00170527,3295.4,3295.3,0.00070233]
[1641990498468,0.99929767,3295.3,3295.2,1.50194776]
[1641990498865,0.00170527,3295.4,3295.2,1.50194776]
[1641990499063,0.88024,3295.9,3295.2,1.50194776]
[1641990499064,0.00113685,3295.3,3295.2,1.50194776]
[1641990499265,0.00113685,3295.3,3294.9,0.00113685]
[1641990499669,0.14341879,3295.2,3294.9,0.00113685]
[1641990499864,0.00113685,3295.3,3294.6,0.7589685]
[1641990500067,0.00113685,3295.3,3294.4,0.00397896]
[1641990500068,0.1213,3295.2,3294.4,0.00397896]
[1641990500267,0.99929767,3294.9,3294.7,0.00227369]
[1641990500464,0.99929767,3294.9,3294.4,1.19210317]
[1641990500465,0.1213,3294.8,3294.4,1.19210317]
[1641990500665,0.1213,3294.8,3294.5,0.00341054]
[1641990500868,0.99929767,3294.7,3294.5,0.00341054]
[1641990501266,0.1213,3295.1,3294.5,0.00341054]
[1641990502617,0.00717877,3295.0,3294.5,0.00341054]
[1641990502822,0.1213,3295.1,3294.5,0.00341054]
[1641990503221,0.1213,3295.1,3294.6,1.35147984]
[1641990503418,0.00620967,3295.0,3294.6,1.35147984]
[1641990503617,0.1213,3295.1,3294.7,0.00227369]
[1641990504220,0.00113685,3295.3,3294.8,0.07584]
[1641990504418,0.00113685,3295.3,3294.8,1.5935051]
[1641990504623,0.00113685,3295.3,3294.9,0.00113685]
[1641990505565,0.00113685,3295.3,3295.0,0.7587715]
[1641990505767,0.00113685,3295.3,3295.1,1.29707854]
[1641990506380,0.1213,3295.2,3295.1,1.29707854]
[1641990506973,0.1213,3295.2,3294.9,3.00113685]
[1641990507178,0.00113685,3295.3,3294.9,3.00113685]
[1641990507869,0.00113685,3295.3,3294.9,3.30113685]
[1641990507870,0.846,3295.1,3294.9,3.30113685]
[1641990508075,0.1213,3295.0,3294.9,0.07653685]
[1641990508270,5.2093,3295.0,3294.9,0.07653685]
[1641990508470,1.3,3294.9,3294.3,0.1213]
[1641990508671,1.63981,3294.8,3294.5,1.076082]
[1641990509114,1.63981,3294.8,3294.5,0.076082]
[1641990509515,1.63981,3294.8,3294.4,0.00284211]
[1641990509516,0.363918,3294.5,3294.4,0.00284211]
[1641990509718,0.485218,3294.5,3294.4,0.00284211]
[1641990509914,0.1213,3294.5,3294.4,0.00284211]
[1641990510115,0.1213,3294.6,3294.4,0.00284211]
[1641990510322,0.1213,3294.6,3293.9,2.62944211]
[1641990510520,0.00863728,3294.5,3293.9,2.62944211]
[1641990510721,0.1213,3294.6,3294.1,1.42059337]
[1641990511119,0.1213,3294.6,3294.2,0.00113685]
[1641990511519,0.05146203,3294.5,3294.2,0.00113685]
[1641990511724,0.99878115,3294.1,3293.9,2.62944211]
[1641990511923,0.99878115,3294.1,3293.3,1.5183382]
[1641990511924,0.03261723,3294.0,3293.3,1.5183382]
[1641990512121,0.99878115,3294.1,3293.3,1.5183382]
[1641990512122,0.99878115,3294.1,3293.3,1.4573382]
[1641990512325,0.99878115,3294.1,3293.7,1.43506794]
[1641990512561,0.12243685,3294.4,3293.8,0.00357062]
[1641990512722,0.12243685,3294.4,3293.8,0.0022737]
[1641990512968,0.12243685,3294.4,3293.9,0.00170527]
[1641990513169,0.12243685,3294.4,3293.8,0.0022737]
[1641990514169,0.12243685,3294.4,3293.9,0.03822877]
[1641990514371,0.12243685,3294.4,3293.8,0.0022737]
[1641990514372,0.88172685,3294.4,3293.8,0.0022737]
[1641990514575,0.88172685,3294.4,3292.6,0.1213]
[1641990514576,0.99750745,3293.8,3292.6,0.1213]
[1641990514775,0.0034965,3294.2,3293.4,0.00227369]
[1641990514776,0.5593,3293.7,3293.4,0.00227369]
[1641990514979,0.438,3293.6,3293.4,0.00227369]
[1641990515174,5.8713,3293.5,3292.3,0.00852635]
[1641990515374,0.75963,3292.9,3292.3,1.36031298]
[1641990515779,1.64055,3293.2,3292.3,1.36031298]
[1641990515780,0.01154754,3292.8,3292.4,0.00795792]
[1641990515975,1.64055,3293.2,3292.4,0.00795792]
[1641990515976,0.1213,3293.2,3292.4,0.00795792]
[1641990516177,0.99154953,3292.4,3292.3,4.45178663]
[1641990516375,0.74152047,3292.4,3292.3,4.45178663]
[1641990516621,0.00397896,3293.1,3292.3,4.45178663]
[1641990517027,0.00341054,3293.0,3292.3,7.45178663]
[1641990517428,0.00284211,3292.9,3292.3,7.45178663]
[1641990517730,0.00227369,3292.8,3292.3,7.45178663]
[1641990518130,0.00170527,3292.7,3292.3,7.45178663]
[1641990518426,0.00113684,3292.6,3292.3,7.45178663]
[1641990518829,0.00454738,3293.2,3292.3,7.45178663]
[1641990519029,0.00454738,3293.2,3292.8,1.17167163]
[1641990519232,0.12527896,3293.1,3292.8,1.17167163]
[1641990519431,0.00397896,3293.1,3292.3,6.1]
[1641990519630,0.01678097,3293.0,3292.3,6.1]
[1641990520062,0.01140984,3292.8,3292.3,6.1]
[1641990520235,0.00284211,3292.9,3292.3,6.1]
[1641990520474,0.00170527,3292.7,3292.3,6.1]
[1641990520682,0.00227369,3292.8,3292.3,6.1]
[1641990520875,0.00113684,3292.6,3292.3,6.1]
[1641990521075,0.00170527,3292.7,3292.3,6.1]
[1641990521276,0.00397896,3293.1,3292.4,1.3970206]
[1641990521476,0.00113684,3292.6,3292.4,1.3970206]
[1641990521679,0.1213,3293.0,3292.3,3.0]
[1641990521680,1.0,3292.4,3292.3,3.0]
[1641990521877,1.5593,3292.4,3292.3,3.0]
[1641990522078,0.5593,3292.4,3292.3,3.0]
[1641990522276,0.5593,3292.4,3292.3,2.0]
[1641990522781,0.1213,3292.4,3292.3,3.27904862]
[1641990522976,0.00284211,3292.9,3292.3,2.51304862]
[1641990523178,0.00284211,3292.9,3292.3,3.49764862]
[1641990523377,1.21445119,3293.3,3292.3,3.49764862]
[1641990523378,0.00227369,3292.8,3292.3,3.49764862]
[1641990523778,0.00170527,3292.7,3292.3,3.49764862]
[1641990524113,0.00113684,3292.6,3292.3,3.49764862]
[1641990524514,0.00397896,3293.1,3292.3,3.49764862]
[1641990524717,0.00397896,3293.1,3292.3,1.41955913]
[1641990524916,0.12471054,3293.0,3292.3,1.41955913]
[1641990525116,0.00341054,3293.0,3292.3,1.41955913]
[1641990525318,0.00284211,3292.9,3292.3,1.41955913]
[1641990525715,0.00227369,3292.8,3292.3,1.41955913]
[1641990526119,0.00170527,3292.7,3292.3,1.41955913]
[1641990526316,0.00170527,3292.7,3292.5,0.02569101]
[1641990526516,0.00113684,3292.6,3292.4,2.1183853]
[1641990526719,0.00113684,3292.6,3292.3,1.41955913]
[1641990526918,0.00454738,3293.2,3292.3,3.90907206]
[1641990527119,0.00454738,3293.2,3292.5,0.7594232]
[1641990527322,0.00397896,3293.1,3292.4,3.93706332]
[1641990527719,0.00341054,3293.0,3292.4,3.93706332]
[1641990527968,0.00341054,3293.0,3292.4,1.7594]
[1641990528164,0.00511581,3293.3,3293.2,1.55382516]
[1641990528369,1.31172305,3293.4,3292.5,0.7594179]
[1641990528570,1.0,3293.2,3292.5,0.7594179]
[1641990528767,1.00454738,3293.2,3292.5,0.7594179]
[1641990528971,0.00454738,3293.2,3292.6,0.01187014]
[1641990529168,0.04405337,3293.1,3292.5,0.7594179]
[1641990529369,0.2405821,3292.5,3292.3,2.05939]
[1641990529569,0.2405821,3292.5,3292.4,6.52377284]
[1641990529875,0.00341054,3293.0,3292.4,6.52377284]
[1641990530074,0.00341054,3293.0,3292.5,0.7594188]
[1641990530270,0.00284211,3292.9,3292.6,0.00414367]
[1641990530476,0.00284211,3292.9,3292.5,0.7594188]
[1641990530671,0.00227369,3292.8,3292.5,0.7594188]
[1641990530871,0.00848063,3292.7,3292.5,0.7594188]
[1641990531071,0.00170527,3292.7,3292.5,0.7594188]
[1641990531270,0.00113684,3292.6,3292.5,0.7594188]
[1641990531712,0.00113684,3292.6,3292.5,12.24488721]
[1641990532012,0.00113684,3292.6,3292.5,12.66618721]
[1641990535568,0.00113684,3292.6,3292.5,13.10418721]
[1641990535773,1.31172305,3293.4,3292.5,13.10418721]
[1641990535968,1.31172305,3293.4,3293.1,1.5182598]
[1641990536168,0.00397897,3293.3,3293.2,2.20427687]
[1641990536967,0.00397897,3293.3,3293.2,10.45427687]
[1641990537368,0.00397897,3293.3,3293.2,11.87860362]
[1641990537667,0.00397897,3293.3,3293.2,13.63776362]
[1641990538072,0.00397897,3293.3,3293.2,13.93776362]
[1641990538870,0.00397897,3293.3,3293.2,11.73348675]
[1641990539525,0.00397897,3293.3,3293.2,12.03348675]
[1641990539727,0.1213,3294.4,3293.8,0.75902]
[1641990539926,0.1213,3294.9,3294.0,0.80550588]
[1641990540124,0.00568423,3294.3,3294.0,0.80550588]
[1641990540325,0.00568423,3294.3,3294.0,1.80550588]
[1641990540525,0.00511581,3294.2,3294.1,1.10804201]
[1641990540725,0.00511581,3294.2,3294.1,7.90804201]
[1641990540930,0.12641581,3294.2,3294.1,1.10804201]
[1641990541124,0.12641581,3294.2,3294.1,0.10845991]
[1641990541324,0.12641581,3294.2,3293.3,7.6533]
[1641990541567,0.12641581,3294.2,3293.3,3.9747]
[1641990541724,0.00454739,3294.1,3293.3,3.9747]
[1641990541925,1.21420897,3294.0,3293.3,3.9747]
[1641990542125,1.21818793,3294.0,3293.3,3.9747]
[1641990542328,0.00341054,3293.9,3293.3,3.9747]
[1641990542526,0.1213,3293.8,3293.3,3.9747]
[1641990542726,0.12414211,3293.8,3293.5,0.03174478]
[1641990543000,0.00227369,3293.7,3293.4,9.23493629]
[1641990543196,1.21420897,3294.0,3293.5,1.10705275]
[1641990543398,14.686,3298.2,3293.7,0.79141871]
[1641990543399,0.1214,3295.3,3293.7,0.79141871]
[1641990543601,0.1213,3295.8,3294.0,0.00945302]
[1641990543807,0.1213,3296.4,3294.9,0.75881]
[1641990543995,0.01193689,3295.8,3295.1,0.7588197]
[1641990544194,0.1213,3295.7,3295.1,0.7588197]
[1641990544396,0.13266847,3295.7,3295.2,0.3]
[1641990544597,0.01080005,3295.6,3295.2,0.3]
[1641990544795,0.1213,3295.5,3295.2,0.3]
[1641990544998,0.13153162,3295.5,3295.2,0.3]
[1641990545197,0.0096632,3295.4,3295.3,5.56637814]
[1641990545797,0.0096632,3295.4,3295.3,5.86637814]
[1641990548831,0.0096632,3295.4,3295.3,1.26637814]
[1641990549026,0.0096632,3295.4,3295.3,4.26637814]
[1641990549226,0.0096632,3295.4,3295.3,3.26637814]
[1641990549826,0.0096632,3295.4,3295.3,3.56637814]
[1641990550026,0.0096632,3295.4,3295.3,3.26637814]
[1641990550226,0.0096632,3295.4,3295.3,2.50437814]
[1641990550859,0.0096632,3295.4,3295.3,2.26637814]
[1641990551263,2.5096632,3295.4,3295.3,1.50437814]
[1641990551464,2.6309632,3295.4,3295.3,1.50437814]
[1641990551667,2.6309632,3295.4,3295.3,1.26637814]
[1641990551865,0.1309632,3295.4,3295.3,1.26637814]
[1641990552064,0.1309632,3295.4,3295.3,0.50437814]
[1641990552279,0.1309632,3295.4,3295.3,0.26637814]
[1641990552665,0.1309632,3295.4,3294.4,3.6055]
[1641990552666,0.49562186,3295.3,3294.4,3.6055]
[1641990552867,0.02387761,3295.1,3294.4,3.6055]
[1641990553065,0.1213,3295.0,3294.4,3.9055]
[1641990553265,0.00738951,3295.0,3294.4,3.6055]
[1641990553467,0.12812108,3294.9,3294.4,3.6055]
[1641990553666,0.01129064,3294.8,3294.5,1.32800458]
[1641990553866,0.00625266,3294.8,3294.5,1.32800458]
[1641990554134,0.00568424,3294.7,3294.5,0.32838272]
[1641990554525,0.766,3294.5,3294.4,3.6055]
[1641990554925,0.00335261,3294.4,3293.9,3.6998]
[1641990555126,0.12465261,3294.4,3293.5,0.00113685]
[1641990555325,0.00341054,3294.3,3293.5,3.88663685]
[1641990555527,0.00341054,3294.3,3293.7,1.16139392]
[1641990555726,0.00284212,3294.2,3293.7,1.16139392]
[1641990555928,0.00284212,3294.2,3293.7,0.16139392]
[1641990556125,0.1213,3294.3,3293.7,0.16139392]
[1641990556126,0.0022737,3294.1,3293.7,0.16139392]
[1641990556325,0.0022737,3294.1,3293.5,3.88663685]
[1641990556326,0.666,3293.7,3293.5,3.88663685]
[1641990556528,0.666,3293.7,3293.5,0.00113685]
[1641990556730,0.26092794,3293.9,3293.5,0.00113685]
[1641990556927,1.0,3293.5,3293.3,0.00227369]
[1641990557128,0.01815046,3293.4,3293.2,0.00284212]
[1641990557426,0.26092794,3293.9,3293.1,1.3873228]
[1641990557625,1.0,3293.2,3293.1,1.3873228]
[1641990557868,1.0,3293.2,3293.1,5.7873228]
[1641990558070,0.75941,3293.8,3293.1,6.0873228]
[1641990558270,0.75941,3293.8,3293.1,3.4]
[1641990558469,0.75941,3293.8,3293.2,0.00284212]
[1641990558679,0.1213,3293.7,3293.1,2.40284212]
[1641990558877,0.05146203,3293.6,3293.1,2.40284212]
[1641990559077,0.0022737,3293.6,3293.1,2.40284212]
[1641990559282,0.00170527,3293.5,3293.1,2.40084212]
[1641990559476,0.00170527,3293.5,3293.1,2.70084212]
[1641990559678,0.00113685,3293.4,3293.2,1.46962417]
[1641990560079,0.00284212,3293.7,3293.2,1.46962417]
[1641990560276,0.00284212,3293.7,3293.2,2.22690107]
[1641990560476,0.0022737,3293.6,3293.2,2.22690107]
[1641990560681,0.01956556,3293.5,3293.2,1.22890107]
[1641990560880,0.00170527,3293.5,3293.2,1.22890107]
[1641990561079,0.00113685,3293.4,3293.2,1.22890107]
[1641990561479,0.00341054,3293.8,3293.2,1.22890107]
[1641990561751,0.00341054,3293.8,3293.3,0.01952115]
[1641990561937,0.38222794,3293.9,3293.2,0.22890107]
[1641990561938,0.00284212,3293.7,3293.2,0.22890107]
[1641990562332,0.0022737,3293.6,3293.2,0.22890107]
[1641990562733,0.00170527,3293.5,3293.2,0.22890107]
[1641990563033,0.00113685,3293.4,3293.2,0.22890107]
[1641990563440,0.05146203,3293.3,3292.8,0.1213]
[1641990563635,0.1213,3293.5,3292.8,0.1213]
[1641990563836,0.1213,3293.5,3292.9,0.00170527]
[1641990564036,0.01065661,3293.3,3292.9,0.00170527]
[1641990564234,0.02683403,3293.1,3292.9,0.00170527]